bitfinex-derivatives/quotes_ETHF0:USTF0_20260303
["timestamp","ask_amount","ask_price","bid_price","bid_amount"]
[1772566884703,4.71662104,1989.3,1988.2,12.04655525]
[1772566885597,4.71662104,1989.3,1988.2,16.01447423]
[1772566886305,4.71662104,1989.3,1988.4,0.25145]
[1772566887301,4.71662104,1989.1,1988.2,4.15209525]
[1772566887504,4.72138781,1989.1,1988.2,0.00562539]
[1772566887707,4.72138781,1989.1,1988.2,3.94620604]
[1772566887900,4.72138781,1989.1,1988.3,4.18439606]
[1772566888100,4.72138781,1989.1,1988.4,3.93293606]
[1772566889202,4.72138781,1989.1,1988.5,0.25143]
[1772566889405,4.71662104,1989.7,1988.7,4.17816483]
[1772566889604,4.71662104,1989.7,1989.1,4.17333806]
[1772566889904,4.71662104,1990.6,1989.3,0.25133]
[1772566890402,4.72271408,1990.6,1989.3,4.16573128]
[1772566891002,4.72271408,1990.6,1989.3,0.25133]
[1772566891399,4.71662104,1990.4,1989.2,4.14646986]
[1772566891603,4.71662104,1990.4,1989.1,7.691]
[1772566891804,4.71662104,1990.2,1988.9,4.14646986]
[1772566893506,4.71662104,1990.0,1988.9,4.14646986]
[1772566893808,4.71662104,1990.0,1988.8,16.02644737]
[1772566894204,4.71662104,1990.0,1988.9,4.14646986]
[1772566894405,4.71662104,1990.0,1988.8,16.02644737]
[1772566894601,4.71662104,1990.5,1989.1,3.85403978]
[1772566894804,4.71662104,1990.5,1989.3,3.85403978]
[1772566895004,4.71662104,1990.5,1989.4,4.09791509]
[1772566895509,4.71662104,1990.5,1989.6,0.25129]
[1772566895710,4.71662104,1990.5,1989.8,4.09896808]
[1772566896206,0.00609304,1990.6,1989.8,4.09896808]
[1772566897012,0.00609304,1990.6,1989.9,3.85404626]
[1772566897205,4.71662104,1991.4,1990.2,3.84795322]
[1772566898204,4.71662104,1991.2,1990.0,4.14646986]
[1772566898407,0.25108,1991.3,1989.7,4.39774986]
[1772566898408,4.71662104,1991.0,1989.7,4.39774986]
[1772566898602,4.71662104,1990.8,1989.6,0.00369153]
[1772566898802,4.71662104,1990.6,1989.6,0.00369153]
[1772566899311,4.71662104,1990.4,1989.1,4.14646986]
[1772566899513,4.71662104,1990.2,1989.0,11.87046986]
[1772566900406,4.71662104,1990.2,1989.0,11.87616508]
[1772566900602,4.71662104,1990.2,1989.1,0.25136]
[1772566900803,4.71662104,1990.2,1989.1,8.18196791]
[1772566901007,4.71662104,1990.2,1989.2,3.77711598]
[1772566901404,4.71662104,1990.2,1989.3,3.77817864]
[1772566901709,12.96662104,1990.4,1989.6,3.77817864]
[1772566902112,12.96662104,1990.4,1989.6,7.9246485]
[1772566902311,4.71662104,1990.4,1989.6,7.9246485]
[1772566902610,4.71662104,1990.4,1989.6,3.77817864]
[1772566902812,4.71662104,1990.4,1989.6,7.9246485]
[1772566903214,4.71662104,1990.4,1989.6,3.77817864]
[1772566903718,4.71662104,1990.4,1989.7,3.77577114]
[1772566903918,4.71662104,1990.4,1989.6,4.14646986]
[1772566904118,4.71662104,1990.4,1989.5,4.39776986]
[1772566904318,4.71662104,1990.4,1989.5,7.9993]
[1772566904920,4.71662104,1991.1,1990.5,0.25117]
[1772566905121,4.72110473,1991.4,1990.5,0.255639]
[1772566905326,4.72110473,1991.4,1990.5,0.004469]
[1772566907825,4.72110473,1991.4,1990.5,3.52261768]
[1772566908223,4.72110473,1991.4,1990.7,3.51362881]
[1772566908924,4.72110473,1991.4,1990.6,0.25117]
[1772566909126,4.72110473,1991.4,1990.6,3.79212691]
[1772566909422,4.72110473,1991.4,1990.6,0.25117]
[1772566909824,4.72110473,1991.4,1990.5,0.004469]
[1772566910931,12.98010473,1991.4,1990.1,8.04723]
[1772566911126,4.46860619,1991.3,1990.1,11.55194725]
[1772566911333,4.46860619,1991.3,1990.2,3.50471725]
[1772566912033,4.46860619,1991.3,1990.2,3.51024414]
[1772566912237,4.46860619,1991.3,1990.3,3.7504705]
[1772566914129,4.46860619,1991.3,1990.2,0.00552689]
[1772566914527,4.46860619,1991.3,1990.2,3.49265233]
[1772566914937,4.46860619,1991.3,1990.2,3.74386233]
[1772566915438,4.46860619,1991.3,1990.2,0.25673689]
[1772566916136,4.46860619,1991.1,1990.2,0.00552689]
[1772566917332,5.88960619,1991.1,1990.2,0.00552689]
[1772566917530,4.46860619,1991.0,1989.7,4.39773986]
[1772566917732,4.71973619,1990.9,1989.6,4.14646986]
[1772566917933,4.46860619,1990.7,1989.5,11.99346986]
[1772566918331,4.46860619,1990.7,1989.6,4.14646986]
[1772566918532,8.279,1990.8,1989.6,4.14646986]
[1772566918533,4.46860619,1990.5,1989.6,4.14646986]
[1772566918736,4.46860619,1990.3,1989.2,4.14646986]
[1772566918935,4.46860619,1990.1,1989.1,4.14646986]
[1772566919134,4.46860619,1990.0,1989.1,4.14646986]
[1772566919538,4.46860619,1990.0,1988.8,7.58558707]
[1772566919939,4.4732383,1990.0,1988.8,7.59210448]
[1772566920345,4.46860619,1989.9,1988.8,4.15298727]
[1772566920637,4.46860619,1989.9,1988.8,0.00651741]
[1772566920841,4.71986619,1989.9,1988.8,0.00651741]
[1772566921035,4.71986619,1989.9,1988.3,7.79629472]
[1772566921036,4.46860619,1989.6,1988.4,4.14646986]
[1772566921239,4.46860619,1989.6,1988.3,4.14646986]
[1772566922245,4.46860619,1989.6,1988.3,4.15275491]
[1772566922551,4.46860619,1989.4,1988.3,0.00628505]
[1772566922738,4.46860619,1989.2,1988.3,0.00628505]
[1772566924344,4.46860619,1989.2,1988.3,3.44590665]
[1772566925448,4.71995619,1989.2,1988.3,0.00628505]
[1772566925644,4.71995619,1989.2,1987.8,15.49520057]
[1772566925844,4.71995619,1989.2,1987.9,3.44701576]
[1772566926046,4.46860619,1989.2,1987.9,3.69851576]
[1772566926245,4.46860619,1989.0,1987.9,3.69851576]
[1772566926749,4.46860619,1989.0,1987.9,3.70217049]
[1772566927453,4.46860619,1989.3,1988.3,3.69817078]
[1772566927648,4.46860619,1989.9,1988.6,3.44671078]
[1772566928651,4.46860619,1989.9,1988.7,0.25141]
[1772566928952,4.46860619,1989.9,1988.7,3.68291382]
[1772566929549,4.46860619,1989.9,1988.7,0.25141]
[1772566929749,4.46860619,1989.7,1988.2,12.32892986]
[1772566929954,4.46860619,1989.5,1988.2,8.18246]
[1772566930142,4.46860619,1989.3,1988.2,8.18246]
[1772566930344,4.46860619,1989.1,1987.9,0.00365473]
[1772566931052,4.46860619,1989.1,1987.9,3.41092182]
[1772566931552,4.46860619,1989.1,1988.0,3.65990701]
[1772566932654,4.46860619,1989.1,1988.0,0.2515]
[1772566932850,4.46860619,1989.1,1988.0,3.67754962]
[1772566933247,4.46860619,1989.3,1988.5,3.41957859]
[1772566934145,4.46860619,1989.6,1988.6,3.66566676]
[1772566935455,4.46860619,1989.6,1988.8,3.41017763]
[1772566935952,4.46860619,1989.6,1988.9,3.65515708]
[1772566936544,4.46860619,1989.9,1988.9,3.65515708]
[1772566937146,4.71986619,1989.9,1988.5,3.37741905]
[1772566937352,4.46860619,1989.4,1988.1,4.14646986]
[1772566937548,4.46860619,1989.1,1988.0,3.37853289]
[1772566937753,4.46860619,1989.1,1987.9,3.62733356]
[1772566939952,4.46860619,1989.1,1987.9,11.58433356]
[1772566941355,4.46860619,1989.1,1988.0,3.23388401]
[1772566941953,4.46860619,1989.1,1987.9,8.21215473]
[1772566942354,4.19595931,1988.9,1987.9,0.00365473]
[1772566942654,4.19595931,1988.9,1987.4,11.44636689]
[1772566942655,4.19595931,1988.5,1987.4,0.25156]
[1772566942959,4.19595931,1988.3,1987.0,7.38123026]
[1772566943152,4.19595931,1988.3,1987.1,3.2347604]
[1772566943757,4.20115961,1988.3,1987.1,3.2387758]
[1772566944058,4.20115961,1988.3,1987.3,3.22997029]
[1772566944858,4.20115961,1988.3,1987.2,0.2516]
[1772566945154,4.20115961,1988.3,1987.2,3.47596847]
[1772566946557,4.20115961,1988.3,1987.4,3.47092907]
[1772566948160,4.20115961,1988.3,1987.4,0.25157]
[1772566948854,4.20115961,1988.3,1987.4,3.46116927]
[1772566949860,4.20115961,1988.3,1987.4,0.25157]
[1772566950758,4.20115961,1988.3,1987.6,3.55614373]
[1772566951459,0.0052003,1988.3,1987.6,13.89078359]
[1772566951656,0.0052003,1988.3,1987.8,7.69759075]
[1772566951852,4.20115961,1988.3,1987.8,4.14646986]
[1772566952056,4.20115961,1988.3,1987.6,4.14646986]
[1772566952256,4.20115961,1988.3,1987.6,7.44003296]
[1772566952459,4.20115961,1988.3,1987.1,16.72688349]
[1772566952460,4.19595931,1987.9,1987.1,1e-08]
[1772566952661,4.19595931,1987.8,1986.6,4.49491058]
[1772566953353,6.92982364,1987.8,1986.6,4.49491058]
[1772566953662,4.19595931,1987.4,1986.6,0.00616189]
[1772566953856,4.19595931,1987.3,1986.6,0.00616189]
[1772566954557,4.19595931,1987.3,1986.6,4.50107247]
[1772566954755,4.19595931,1987.3,1986.6,4.75274247]
[1772566954951,4.19595931,1987.7,1986.6,4.75274247]
[1772566955950,4.19595931,1988.2,1986.9,4.49491058]
[1772566956151,4.19595931,1988.2,1987.0,4.49491058]
[1772566956357,4.19595931,1988.2,1987.0,4.74653058]
[1772566957866,4.19595931,1988.2,1987.5,4.49491058]
[1772566959058,4.19595931,1988.2,1987.0,4.49491058]
[1772566959559,4.44743931,1988.2,1986.9,8.25763]
[1772566959860,4.19595931,1988.0,1986.9,8.25763]
[1772566960065,4.19595931,1988.0,1987.0,4.49491058]
[1772566961466,4.19595931,1988.0,1986.9,0.25163]
[1772566961657,4.19595931,1988.0,1986.9,4.74654058]
[1772566962761,4.19595931,1988.0,1986.7,4.49491058]
[1772566962961,4.19595931,1987.8,1986.7,4.49491058]
[1772566963359,4.19595931,1987.8,1986.9,4.49491058]
[1772566963556,4.19595931,1987.8,1987.1,4.49491058]
[1772566963757,4.19595931,1988.2,1987.1,4.49491058]
[1772566963958,4.20115961,1988.3,1987.6,0.25154]
[1772566964164,4.20115961,1988.3,1987.4,4.49491058]
[1772566964356,4.20115961,1988.3,1987.1,0.2516]
[1772566964357,4.19595931,1988.2,1987.1,0.2516]
[1772566964562,4.19595931,1988.2,1986.6,0.00616189]
[1772566964563,4.44743931,1988.2,1987.0,4.49491058]
[1772566964762,4.44743931,1988.2,1987.0,4.74653058]
[1772566964963,4.19595931,1988.2,1987.0,4.74653058]
[1772566966769,4.19595931,1987.8,1986.7,4.49491058]
[1772566966963,4.19595931,1987.7,1986.7,4.49491058]
[1772566967364,4.19595931,1987.7,1986.6,0.00616189]
[1772566967766,4.19595931,1987.7,1986.6,4.50107247]
[1772566967966,4.19595931,1987.7,1986.8,4.49491058]
[1772566968167,4.19595931,1987.7,1986.9,4.48348664]
[1772566968470,4.41801224,1987.9,1987.1,0.25161]
[1772566969064,4.41801224,1987.9,1987.1,4.48345664]
[1772566969266,4.41801224,1987.9,1986.6,12.28596325]
[1772566969465,4.41801224,1987.9,1986.6,4.48966853]
[1772566969769,4.41801224,1987.7,1986.6,4.48966853]
[1772566972373,0.0052003,1988.3,1987.6,4.48338664]
[1772566973073,4.41801224,1988.9,1987.6,4.48338664]
[1772566973273,8.28,1989.0,1987.6,4.48338664]
[1772566973274,4.41801224,1988.7,1987.6,4.48338664]
[1772566973973,4.4235386,1988.7,1987.6,4.48338664]
[1772566974274,4.4235386,1988.7,1987.8,4.23184664]
[1772566977071,4.4235386,1988.7,1987.6,4.48338664]
[1772566977273,4.41801224,1988.5,1987.6,0.25154]
[1772566977873,4.41801224,1988.5,1987.4,4.23184664]
[1772566978371,4.41801224,1988.5,1987.6,4.23184664]
[1772566978675,4.41801224,1988.5,1987.7,4.48337664]
[1772566979372,4.4235386,1988.7,1987.7,4.48337664]
[1772566979573,4.4235386,1988.7,1987.7,0.25153]
[1772566980572,4.4235386,1988.7,1987.6,4.23184664]
[1772566980978,4.41801224,1988.5,1987.4,4.23184664]
[1772566981178,4.41801224,1988.3,1987.0,12.28284664]
[1772566981379,4.41801224,1988.1,1987.0,12.28284664]
[1772566981575,4.41801224,1988.1,1987.0,4.23184664]
[1772566981780,4.41801224,1988.1,1986.8,4.23184664]
[1772566982177,4.41801224,1988.1,1987.0,4.23184664]
[1772566983776,4.41801224,1988.1,1987.1,4.48345664]
[1772566984178,4.41801224,1988.1,1987.2,4.23184664]
[1772566984375,4.41801224,1988.1,1987.4,4.23184664]
[1772566985879,4.41801224,1988.1,1987.2,4.23184664]
[1772566986274,4.41801224,1988.1,1987.0,6.30209915]
[1772566986481,4.41801224,1987.9,1987.0,4.23184664]
[1772566986679,4.41801224,1987.7,1986.6,10.54010768]
[1772566986878,4.41801224,1987.3,1986.2,4.23184664]
[1772566987082,4.41801224,1987.1,1986.2,4.48356664]
[1772566987985,4.42294125,1987.1,1986.2,0.0065238]
[1772566988679,4.42294125,1987.1,1985.8,4.23184664]
[1772566988680,4.41801224,1986.9,1985.8,4.23184664]
[1772566988884,4.41801224,1986.7,1985.6,4.23184664]
[1772566989087,4.41801224,1986.5,1985.6,4.23184664]
[1772566989282,4.41801224,1986.1,1984.6,10.78080952]
[1772566989581,4.18430082,1986.5,1984.6,10.78080952]
[1772566989582,4.41801224,1985.9,1985.1,4.23184664]
[1772566989777,4.41801224,1986.1,1985.1,4.2359787]
[1772566990187,4.41801224,1986.1,1985.1,0.00413206]
[1772566990784,4.41801224,1985.5,1984.2,0.853564]
[1772566991085,4.41801224,1985.3,1984.2,5.08541064]
[1772566991486,4.41801224,1985.1,1984.2,5.08541064]
[1772566991683,4.41801224,1985.1,1984.2,0.853564]
[1772566991878,4.42271538,1985.1,1983.7,4.23184664]
[1772566992490,4.42271538,1985.1,1983.3,8.084]
[1772566992491,4.42271538,1985.1,1983.5,4.23184664]
[1772566993088,4.42271538,1985.1,1983.5,4.23601719]
[1772566993489,4.41801224,1985.0,1983.5,0.00417055]
[1772566993789,4.41801224,1984.8,1983.5,0.00417055]
[1772566994991,4.41801224,1984.8,1983.5,4.23601719]
[1772566995692,4.41801224,1984.8,1983.5,0.00417055]
[1772566996490,4.41801224,1984.6,1983.1,2.18974562]
[1772566996692,4.41801224,1984.4,1983.1,2.18974562]
[1772566996891,4.41801224,1984.4,1983.1,6.42159226]
[1772566997091,4.41801224,1984.4,1982.5,14.31006]
[1772566997092,4.41801224,1984.2,1982.5,4.23184664]
[1772566997491,4.41801224,1984.2,1982.9,4.23184664]
[1772566997984,6.44818,1985.0,1983.5,4.40444233]
[1772566997985,4.70703329,1985.0,1983.5,4.40444233]
[1772566998186,4.70703329,1984.9,1983.5,4.40444233]
[1772566998386,4.70703329,1984.9,1983.3,4.40444233]
[1772566998995,4.70703329,1984.7,1983.3,4.40444233]
[1772566999195,4.70703329,1984.7,1983.5,4.66198366]
[1772567000199,4.70703329,1984.7,1983.6,4.91403366]
[1772567000793,4.70703329,1984.7,1983.7,4.66198366]
[1772567001001,4.73996247,1985.0,1983.9,4.66198366]
[1772567001197,4.73996247,1985.0,1983.9,4.66720683]
[1772567001397,0.00470314,1985.1,1984.1,4.66198366]
[1772567001598,0.00470314,1985.1,1984.3,4.66198366]
[1772567002196,4.74466561,1985.1,1984.3,4.66198366]
[1772567002895,0.00470314,1985.1,1984.5,4.66198366]
[1772567003102,4.73996247,1985.9,1984.7,4.66198366]
[1772567003500,4.73996247,1985.9,1984.9,4.66198366]
[1772567003794,4.73996247,1985.9,1985.1,4.66198366]
[1772567003993,4.73996247,1986.2,1985.3,4.66198366]
[1772567004193,4.74533011,1986.2,1985.3,4.66554687]
[1772567004392,0.00536764,1986.2,1985.5,4.66198366]
[1772567004796,4.73996247,1986.5,1985.5,4.66198366]
[1772567005395,4.73996247,1986.5,1985.7,4.66198366]
[1772567005602,13.07296247,1986.8,1985.7,4.66198366]
[1772567005802,4.73996247,1986.7,1985.7,4.66198366]
[1772567005999,4.73996247,1986.7,1985.9,4.66198366]
[1772567006205,0.00623124,1986.8,1985.9,4.66198366]
[1772567006601,4.74619371,1986.8,1985.9,4.66198366]
[1772567007301,4.74619371,1986.8,1985.7,12.78198366]
[1772567007500,4.74619371,1986.8,1985.7,8.12]
[1772567008000,4.74619371,1986.8,1985.4,4.66198366]
[1772567009508,4.74619371,1986.8,1985.6,4.66198366]
[1772567010702,4.74619371,1986.8,1985.7,0.25179]
[1772567010901,4.74619371,1986.8,1985.8,4.66198366]
[1772567011303,4.99162247,1986.7,1985.4,4.66198366]
[1772567011503,4.73996247,1986.7,1985.4,4.66198366]
[1772567013708,0.00623124,1986.8,1985.8,4.66198366]
[1772567014209,0.00623124,1986.8,1986.0,4.66198366]
[1772567014413,0.00623124,1986.8,1985.7,14.30908]
[1772567014414,0.00623124,1986.8,1986.2,4.66198366]
[1772567015204,4.73996247,1987.1,1986.2,4.66198366]
[1772567015411,4.73996247,1987.7,1986.2,4.66198366]
[1772567016009,4.74540018,1987.7,1986.2,4.66198366]
[1772567016205,4.74540018,1987.7,1986.4,4.66198366]
[1772567016410,4.74540018,1987.7,1986.6,4.66198366]
[1772567018011,0.00543771,1987.7,1986.7,4.91364366]
[1772567018215,0.00543771,1987.7,1986.7,4.91919536]
[1772567018416,4.73996247,1988.2,1987.0,4.66198366]
[1772567018709,4.73996247,1988.2,1987.4,4.66198366]
[1772567019517,4.74445656,1988.2,1987.4,4.66198366]
[1772567019813,0.00449409,1988.2,1987.4,4.66198366]
[1772567020015,4.74445656,1988.2,1987.4,4.66198366]
[1772567020914,0.00449409,1988.2,1987.4,4.66198366]
[1772567021116,0.00449409,1988.2,1987.6,4.66198366]
[1772567021512,4.73996247,1989.3,1987.7,4.91351366]
[1772567021816,4.73996247,1989.3,1988.1,4.66198366]
[1772567022515,4.7450035,1989.3,1988.1,4.66552196]
[1772567023210,6.18326,1989.2,1986.1,10.31160343]
[1772567023413,6.19355,1985.9,1984.5,4.72582459]
[1772567023611,8.286,1985.8,1984.6,9.59584016]
[1772567023811,8.286,1985.8,1984.4,4.72582459]
[1772567024008,8.286,1985.8,1984.5,17.6889366]
[1772567024412,12.05064908,1985.7,1984.5,22.41759339]
[1772567024619,7.93462873,1985.6,1984.6,4.72865679]
[1772567024912,7.93462873,1985.5,1984.6,4.72865679]
[1772567025311,7.93462873,1985.5,1984.7,8.86882934]
[1772567025511,4.73996247,1985.4,1984.7,17.6889366]
[1772567025712,4.73996247,1985.2,1984.7,17.6889366]
[1772567025910,4.11602035,1985.6,1984.8,4.66198366]
[1772567026114,4.73996247,1986.4,1985.0,4.66198366]
[1772567026410,7.93089296,1986.3,1985.4,4.66198366]
[1772567026811,4.73996247,1986.6,1985.4,4.66198366]
[1772567027012,7.93089296,1986.5,1985.6,4.66198366]
[1772567027210,4.73996247,1986.3,1985.5,17.68504426]
[1772567027418,7.93089296,1986.2,1985.6,4.66198366]
[1772567027619,7.93089296,1986.1,1985.7,4.66198366]
[1772567027918,4.11602035,1986.5,1985.7,4.66198366]
[1772567027919,4.11602035,1986.5,1985.8,9.59584016]
[1772567028114,7.9309329,1986.4,1985.8,25.5528733]
[1772567028315,7.9309329,1986.3,1985.9,7.86782904]
[1772567028518,0.00482784,1986.6,1985.9,16.74139614]
[1772567028714,0.00482784,1986.6,1986.1,7.86782904]
[1772567029115,0.00482784,1986.6,1986.2,17.68504426]
[1772567029316,7.91406699,1986.6,1986.2,17.68504426]
[1772567029516,0.00482784,1986.6,1986.2,17.68504426]
[1772567030018,8.15406842,1986.6,1985.9,0.00473776]
[1772567030318,8.15406842,1986.6,1986.0,17.68504426]
[1772567030814,12.27008877,1986.6,1986.0,17.68504426]
[1772567031017,4.12084819,1986.6,1986.0,17.68504426]
[1772567032313,4.12084819,1986.6,1985.9,0.00473776]
[1772567032524,4.12084819,1986.6,1985.9,8.8735671]
[1772567032818,12.27008877,1986.6,1986.0,17.68504426]
[1772567033024,12.27008877,1986.6,1986.0,8.0892041]
[1772567033324,4.11602035,1986.5,1986.1,9.59584016]
[1772567033722,4.11602035,1986.4,1986.1,9.59584016]
[1772567034420,4.11602035,1986.3,1985.9,0.00473776]
[1772567034622,12.26526093,1986.3,1986.0,17.68504426]
[1772567034919,12.26526093,1986.3,1986.0,13.03772851]
[1772567035120,4.11602035,1986.1,1985.9,0.00473776]
[1772567035315,6.17403052,1986.0,1985.2,8.27506651]
[1772567035622,4.15961083,1985.8,1985.3,8.27506651]
[1772567036023,4.15961083,1985.7,1985.5,17.14512957]
[1772567036321,7.71753815,1986.1,1985.5,8.28009379]
[1772567036524,7.71753815,1986.2,1985.8,7.86782904]
[1772567036722,7.71753815,1986.2,1985.6,7.86782904]
[1772567036922,7.71753815,1986.2,1985.6,16.73665838]
[1772567037123,7.71753815,1986.2,1985.6,7.86782904]
[1772567037425,14.26294694,1986.2,1985.5,7.8716226]
[1772567037724,7.71753815,1986.2,1985.5,7.8716226]
[1772567038128,16.11553815,1986.4,1985.7,7.86782904]
[1772567038328,7.24380747,1986.3,1985.5,0.00379356]
[1772567038625,7.24380747,1986.1,1985.5,7.8716226]
[1772567039126,7.71753815,1986.5,1985.7,7.86782904]
[1772567039426,7.43794926,1986.6,1985.7,7.86782904]
[1772567039818,7.43794926,1986.6,1985.5,8.23979356]
[1772567039819,7.42958771,1986.4,1985.5,16.1076226]
[1772567040216,7.42958771,1986.4,1985.5,24.97645194]
[1772567040426,7.42958771,1986.4,1985.5,16.1076226]
[1772567040627,15.36353209,1986.3,1985.6,7.86782904]
[1772567040927,7.9318116,1986.2,1985.6,7.86782904]
[1772567041120,7.9318116,1986.2,1985.6,16.73665838]
[1772567041323,7.9318116,1986.2,1985.6,7.86782904]
[1772567041521,7.40353594,1986.1,1985.5,0.00379356]
[1772567041821,7.40353594,1985.9,1985.5,0.00379356]
[1772567042123,7.9318116,1985.8,1985.2,7.86782904]
[1772567042426,7.37889622,1985.7,1985.2,7.86782904]
[1772567042627,15.28414153,1985.6,1985.0,7.86782904]
[1772567042925,7.32794443,1985.8,1985.0,7.86782904]
[1772567043127,8.423,1985.9,1985.0,7.87228838]
[1772567043327,16.57224058,1985.9,1985.2,7.86782904]
[1772567043628,8.14924058,1986.1,1985.2,7.86782904]
[1772567043923,8.14924058,1986.0,1985.1,7.86782904]
[1772567044321,8.14924058,1985.9,1985.3,7.86782904]
[1772567044721,8.14924058,1985.9,1985.4,8.86882934]
[1772567045120,8.14924058,1986.2,1985.3,7.86782904]
[1772567045323,16.58124058,1986.4,1985.6,7.86782904]
[1772567045524,8.14924058,1986.3,1985.6,7.86782904]
[1772567046225,8.14924058,1986.3,1985.7,8.86882934]
[1772567046726,8.14924058,1986.3,1985.8,8.86882934]
[1772567046926,8.14924058,1986.3,1985.6,7.86782904]
[1772567047227,8.14924058,1986.3,1985.7,8.86882934]
[1772567047627,8.14924058,1986.3,1985.6,7.86782904]
[1772567047827,8.40096058,1986.3,1985.2,7.86782904]
[1772567048027,8.40096058,1986.3,1985.2,16.73665838]
[1772567048330,8.40096058,1986.3,1985.2,7.86782904]
[1772567048528,8.40096058,1986.3,1985.3,16.73665838]
[1772567048829,8.40096058,1986.3,1985.3,7.86782904]
[1772567049029,8.40096058,1986.3,1985.4,8.86882934]
[1772567049227,8.14924058,1986.2,1985.5,7.86782904]
[1772567049530,16.59824058,1986.4,1985.6,7.86782904]
[1772567049721,16.59824058,1986.4,1985.3,0.25184]
[1772567049722,7.71753815,1986.8,1986.2,7.86782904]
[1772567049926,7.71753815,1987.4,1986.5,8.11951904]
[1772567050125,8.14924058,1987.4,1986.5,8.11951904]
[1772567050329,15.86677873,1987.4,1986.5,8.11951904]
[1772567050532,8.14924058,1987.3,1986.6,7.86782904]
[1772567050926,8.15537698,1987.3,1986.8,16.73665838]
[1772567051133,0.0061364,1987.3,1986.9,7.86782904]
[1772567051430,8.15537698,1987.3,1986.9,8.86882934]
[1772567051830,8.15537698,1987.3,1986.6,7.87215722]
[1772567052031,8.15537698,1987.3,1986.7,8.86882934]
[1772567052229,8.14924058,1987.2,1986.7,8.86882934]
[1772567052429,8.14924058,1987.2,1986.6,0.00432818]
[1772567052629,8.14924058,1987.2,1986.8,8.86882934]
[1772567053032,8.14924058,1987.2,1986.9,8.86882934]
[1772567053326,7.72367455,1987.3,1986.6,7.87215722]
[1772567053527,24.33691513,1987.3,1986.8,8.86882934]
[1772567053929,16.61937698,1987.3,1986.6,7.87215722]
[1772567054132,8.14924058,1987.2,1986.9,8.86882934]
[1772567054629,8.14924058,1987.2,1987.1,8.86882934]
[1772567054829,8.14924058,1987.2,1986.6,7.87215722]
[1772567055030,7.68032284,1987.1,1986.9,8.86882934]
[1772567055222,7.68032284,1987.0,1986.6,7.87215722]
[1772567055423,7.71753815,1987.4,1986.6,7.87215722]
[1772567055424,7.71753815,1987.6,1986.8,7.86782904]
[1772567055623,8.14924058,1987.7,1987.1,8.86882934]
[1772567055830,8.14924058,1987.7,1987.0,7.86782904]
[1772567056026,15.86677873,1987.7,1987.1,8.86882934]
[1772567056226,8.14924058,1987.6,1986.6,7.87215722]
[1772567056623,8.15527982,1987.6,1986.9,8.86882934]
[1772567056922,0.00603924,1987.6,1986.9,7.86782904]
[1772567057127,8.15527982,1987.6,1987.3,8.86882934]
[1772567057527,8.15527982,1987.6,1986.9,7.86782904]
[1772567057938,8.15527982,1987.6,1986.6,9.09431052]
[1772567058128,8.15527982,1987.6,1986.8,8.86882934]
[1772567058526,8.15527982,1987.6,1986.6,9.09431052]
[1772567058732,8.15527982,1987.6,1986.8,8.99658263]
[1772567058932,17.53707029,1987.5,1986.8,8.99658263]
[1772567059133,9.04707029,1987.4,1987.1,8.86882934]
[1772567059333,9.04707029,1987.4,1986.6,0.00432818]
[1772567059832,9.04707029,1987.4,1986.6,8.98504988]
[1772567060131,9.04707029,1987.4,1987.0,8.10203531]
[1772567060326,9.04707029,1987.4,1986.7,8.95214767]
[1772567060629,9.04707029,1987.4,1987.1,8.10203531]
[1772567061127,9.04707029,1987.4,1986.7,8.95214767]
[1772567061128,9.04707029,1987.4,1987.3,8.10203531]
[1772567061328,9.04707029,1987.4,1986.7,8.95214767]
[1772567061729,9.04707029,1987.4,1987.1,8.10203531]
[1772567061929,0.00603924,1987.6,1986.9,8.93605272]
[1772567062231,0.00603924,1987.6,1987.4,8.10203531]
[1772567062635,9.04707029,1987.7,1987.5,8.10203531]
[1772567062835,9.04707029,1987.7,1986.9,8.93605272]
[1772567063229,9.04707029,1987.7,1987.4,8.10203531]
[1772567063631,9.0534558,1987.7,1987.6,8.10203531]
[1772567063830,5.22749166,1987.7,1987.0,8.96630175]
[1772567064032,5.22749166,1987.7,1986.9,8.242]
[1772567064234,9.04707029,1987.5,1986.6,17.3092098]
[1772567064629,9.04707029,1987.5,1986.7,9.06288162]
[1772567064829,8.515,1987.4,1986.7,9.06288162]
[1772567065031,8.517,1987.5,1986.7,9.06288162]
[1772567066834,17.56407029,1987.5,1986.7,9.06288162]
[1772567067533,6.92355327,1987.4,1986.7,9.06288162]
[1772567068435,9.04707029,1987.3,1986.7,9.06288162]
[1772567069136,9.04707029,1987.3,1986.6,8.24632818]
[1772567069437,9.04707029,1987.3,1986.6,17.3092098]
[1772567070534,9.04707029,1987.3,1986.6,9.0672098]
[1772567071432,2.73705316,1987.6,1986.6,9.0672098]
[1772567071637,0.00638551,1987.7,1987.0,9.06288162]
[1772567071839,9.04707029,1988.2,1987.2,9.06288162]
[1772567072041,9.04707029,1988.2,1987.3,9.06288162]
[1772567072637,9.04707029,1988.2,1987.3,9.31447162]
[1772567072836,0.00640649,1988.2,1987.3,9.31447162]
[1772567073837,9.05347678,1988.2,1987.3,9.06288162]
[1772567074236,0.00640649,1988.2,1987.3,9.06288162]
[1772567074549,0.00640649,1988.2,1987.5,9.06288162]
[1772567074739,0.00640649,1988.2,1987.6,9.06288162]
[1772567075841,15.31964115,1988.8,1987.8,9.06288162]
[1772567076043,9.04707029,1988.8,1987.8,9.06288162]
[1772567076745,9.04707029,1988.8,1987.8,17.30688162]
[1772567076946,9.04707029,1988.6,1987.8,17.30688162]
[1772567077348,9.04707029,1988.6,1987.9,9.06288162]
[1772567077645,8.557,1988.7,1986.5,6.19129]
[1772567077646,9.04707029,1988.4,1987.2,9.31447162]
[1772567077853,9.04707029,1988.2,1987.4,9.06288162]
[1772567078748,9.04707029,1988.1,1987.4,9.06288162]
[1772567079452,9.04707029,1988.1,1987.3,8.244]
[1772567079647,9.04707029,1988.1,1987.2,9.31447162]
[1772567080849,9.04707029,1988.1,1987.2,9.06288162]
[1772567082951,9.04707029,1988.1,1987.0,17.30988162]
[1772567083158,9.04707029,1987.9,1986.8,9.06288162]
[1772567083451,9.04707029,1987.7,1986.8,9.06288162]
[1772567083648,9.04707029,1987.5,1986.6,9.0672098]
[1772567083953,15.7492795,1987.4,1986.6,9.0672098]
[1772567084154,9.05089337,1987.4,1986.6,9.0672098]
[1772567085248,9.04707029,1988.4,1987.7,9.06288162]
[1772567085452,9.04707029,1989.0,1987.9,7.31884871]
[1772567085648,9.04707029,1989.0,1988.1,7.3231237]
[1772567086249,9.05172845,1989.0,1988.1,7.32916439]
[1772567088161,0.00465816,1989.0,1988.3,7.70156352]
[1772567088455,9.95131058,1989.0,1988.3,7.70156352]
[1772567088955,0.00465816,1989.0,1988.3,7.70156352]
[1772567090359,9.94665242,1989.4,1988.3,7.70156352]
[1772567091260,9.95110354,1989.4,1988.3,7.70156352]
[1772567092757,9.94665242,1989.2,1988.1,0.00604069]
[1772567092963,0.25133,1989.3,1988.1,0.00604069]
[1772567092964,9.94665242,1989.0,1988.1,0.00604069]
[1772567094860,9.94665242,1988.8,1987.4,8.273]
[1772567095063,9.94665242,1988.6,1987.5,7.58361658]
[1772567096061,9.94665242,1988.6,1987.5,0.00505102]